[Event "*** SCC Grand Prix: Titled Tuesday Blitz"]
[Site "Chess.com"]
[Date "2020.08.25"]
[Round "4"]
[White "mortngabriel"]
[Black "BikingBrian"]
[Result "1-0"]
[WhiteElo "2452"]
[BlackElo "2274"]
[TimeControl "180+1"]
[EndTime "10:40:13 PDT"]
[Termination "mortngabriel won by resignation"]

1. e4 {[%clk 0:03:00.9]} 1... c5 {[%clk 0:02:59.5]} 2. Nf3 {[%clk 0:03:00.3]}
2... g6 {[%clk 0:02:59.9]} 3. d4 {[%clk 0:03:00]} 3... cxd4 {[%clk 0:03:00.8]}
4. Qxd4 {[%clk 0:03:00.6]} 4... Nf6 {[%clk 0:03:00.5]} 5. Nc3 {[%clk 0:03:01.2]}
5... Nc6 {[%clk 0:03:00.5]} 6. Qa4 {[%clk 0:03:01.7]} 6... d6 {[%clk 0:03:00.9]}
7. e5 {[%clk 0:03:02.2]} 7... dxe5 {[%clk 0:03:01.2]} 8. Nxe5 {[%clk 0:03:03.1]}
8... Qd4 {[%clk 0:03:01.2]} 9. Nxc6 {[%clk 0:03:03.3]} 9... Qxa4 {[%clk
0:03:01.2]} 10. Nxa4 {[%clk 0:03:04.2]} 10... bxc6 {[%clk 0:03:01.4]} 11. b3
{[%clk 0:03:01.6]} 11... Bg7 {[%clk 0:03:01.2]} 12. Bb2 {[%clk 0:03:02.1]} 12...
O-O {[%clk 0:03:01.1]} 13. Bd3 {[%clk 0:02:51]} 13... Nd5 {[%clk 0:02:55.7]} 14.
Bxg7 {[%clk 0:02:49.8]} 14... Kxg7 {[%clk 0:02:56.6]} 15. O-O-O {[%clk
0:02:32.3]} 15... Nb4 {[%clk 0:02:30.6]} 16. a3 {[%clk 0:02:27.5]} 16... Nxd3+
{[%clk 0:02:27.8]} 17. Rxd3 {[%clk 0:02:28.4]} 17... Bf5 {[%clk 0:02:25]} 18.
Rc3 {[%clk 0:02:28.4]} 18... Be4 {[%clk 0:02:16.6]} 19. f3 {[%clk 0:02:28.2]}
19... Bd5 {[%clk 0:02:17]} 20. Re1 {[%clk 0:02:25.7]} 20... Kf6 {[%clk
0:02:04.8]} 21. Rc5 {[%clk 0:02:26.2]} 21... Rac8 {[%clk 0:01:52.4]} 22. Ra5
{[%clk 0:02:24.2]} 22... Rc7 {[%clk 0:01:51.3]} 23. Nc5 {[%clk 0:02:24.4]} 23...
e5 {[%clk 0:01:42.1]} 24. Rd1 {[%clk 0:02:16.9]} 24... Ke7 {[%clk 0:01:23.5]}
25. Re1 {[%clk 0:02:14.4]} 25... Kf6 {[%clk 0:01:23]} 26. c4 {[%clk 0:02:06.4]}
26... Be6 {[%clk 0:01:22.4]} 27. Nd3 {[%clk 0:02:06.7]} 27... Rb8 {[%clk
0:01:12.9]} 28. Nc5 {[%clk 0:01:49.1]} 28... Bc8 {[%clk 0:00:45.6]} 29. Kb2
{[%clk 0:01:41.3]} 29... Re7 {[%clk 0:00:38.7]} 30. Kc3 {[%clk 0:01:40.9]} 30...
h5 {[%clk 0:00:36.3]} 31. Nd3 {[%clk 0:01:36.7]} 31... Reb7 {[%clk 0:00:25.9]}
32. b4 {[%clk 0:01:35.6]} 32... Bf5 {[%clk 0:00:20]} 33. Nxe5 {[%clk 0:01:31.7]}
33... Rc7 {[%clk 0:00:17.9]} 34. Rc5 {[%clk 0:01:19.2]} 34... Rbc8 {[%clk
0:00:16.3]} 35. h4 {[%clk 0:01:17]} 35... Be6 {[%clk 0:00:16]} 36. Rd1 {[%clk
0:01:10.3]} 36... Bd5 {[%clk 0:00:14.1]} 37. cxd5 {[%clk 0:01:08.1]} 37... cxd5
{[%clk 0:00:13.8]} 38. Rxd5 {[%clk 0:00:59.7]} 38... Rxc5+ {[%clk 0:00:13.6]}
39. Rxc5 {[%clk 0:01:00.2]} 39... Rxc5+ {[%clk 0:00:13.7]} 40. bxc5 {[%clk
0:01:01]} 40... Kxe5 {[%clk 0:00:14.4]} 41. Kc4 {[%clk 0:01:01.3]} 41... Ke6
{[%clk 0:00:14.3]} 42. Kb5 {[%clk 0:00:59.4]} 42... Kd7 {[%clk 0:00:14.7]} 43.
c6+ {[%clk 0:00:56.9]} 43... Kc7 {[%clk 0:00:14.8]} 44. Kc5 {[%clk 0:00:57]}
44... a6 {[%clk 0:00:13.7]} 45. a4 {[%clk 0:00:56.7]} 45... f6 {[%clk
0:00:14.2]} 46. a5 {[%clk 0:00:56.4]} 46... g5 {[%clk 0:00:14.8]} 47. g3 {[%clk
0:00:55.9]} 47... gxh4 {[%clk 0:00:14.8]} 48. gxh4 {[%clk 0:00:55.8]} 1-0

[Event "*** SCC Grand Prix: Titled Tuesday Blitz"]
[Site "Chess.com"]
[Date "2020.08.25"]
[Round "4"]
[White "Kavyev_Ruslan"]
[Black "Morshynska"]
[Result "1-0"]
[WhiteElo "2479"]
[BlackElo "2191"]
[TimeControl "180+1"]
[EndTime "10:40:16 PDT"]
[Termination "Kavyev_Ruslan won by resignation"]

1. e4 {[%clk 0:02:55.8]} 1... c5 {[%clk 0:02:58.9]} 2. Nf3 {[%clk 0:02:55.6]}
2... a6 {[%clk 0:02:58]} 3. c3 {[%clk 0:02:55.3]} 3... e6 {[%clk 0:02:55.7]} 4.
d4 {[%clk 0:02:55.2]} 4... d5 {[%clk 0:02:54.8]} 5. exd5 {[%clk 0:02:51.8]} 5...
Qxd5 {[%clk 0:02:47.1]} 6. Be2 {[%clk 0:02:50.8]} 6... cxd4 {[%clk 0:02:43.3]}
7. cxd4 {[%clk 0:02:50.3]} 7... Bd7 {[%clk 0:02:35.3]} 8. Nc3 {[%clk 0:02:49.4]}
8... Bb4 {[%clk 0:02:33.8]} 9. O-O {[%clk 0:02:49.2]} 9... Bxc3 {[%clk
0:02:33.7]} 10. bxc3 {[%clk 0:02:50.1]} 10... Bb5 {[%clk 0:02:32.6]} 11. Ba3
{[%clk 0:02:21.6]} 11... Nc6 {[%clk 0:02:16]} 12. Re1 {[%clk 0:02:03]} 12...
Nge7 {[%clk 0:01:46.7]} 13. Ne5 {[%clk 0:01:51.2]} 13... Bxe2 {[%clk 0:01:39.4]}
14. Rxe2 {[%clk 0:01:46.2]} 14... Ng6 {[%clk 0:01:10.8]} 15. Nxc6 {[%clk
0:01:39.7]} 15... Qxc6 {[%clk 0:00:40.3]} 16. Rb1 {[%clk 0:01:38.5]} 16... O-O-O
{[%clk 0:00:33]} 17. Reb2 {[%clk 0:01:37.9]} 17... Rd7 {[%clk 0:00:28.4]} 18.
Rb6 {[%clk 0:01:32.7]} 18... Qe4 {[%clk 0:00:23.5]} 19. f3 {[%clk 0:01:22.8]}
19... Qe3+ {[%clk 0:00:22.8]} 20. Kh1 {[%clk 0:01:22.8]} 20... Nf4 {[%clk
0:00:14.4]} 21. Bc1 {[%clk 0:01:18.8]} 21... Qe2 {[%clk 0:00:10]} 22. Bxf4
{[%clk 0:01:18.8]} 22... Qc4 {[%clk 0:00:08]} 23. Qb3 {[%clk 0:01:18]} 23...
Qxb3 {[%clk 0:00:06.7]} 24. R1xb3 {[%clk 0:01:18.9]} 24... f6 {[%clk 0:00:07.5]}
25. Rc6+ {[%clk 0:01:18.7]} 25... Kd8 {[%clk 0:00:06]} 26. Rxe6 {[%clk
0:01:17.9]} 26... g5 {[%clk 0:00:05.1]} 27. Bg3 {[%clk 0:01:17.5]} 27... Rf8
{[%clk 0:00:05.2]} 28. h3 {[%clk 0:01:16.6]} 28... h5 {[%clk 0:00:05.1]} 29.
Rbb6 {[%clk 0:01:16.3]} 29... f5 {[%clk 0:00:04.2]} 30. Be5 {[%clk 0:01:15.8]}
30... f4 {[%clk 0:00:04]} 31. Bf6+ {[%clk 0:01:15.8]} 31... Kc8 {[%clk
0:00:03.6]} 32. Bxg5 {[%clk 0:01:16]} 32... Rg8 {[%clk 0:00:03.4]} 33. Bxf4
{[%clk 0:01:16.2]} 33... Rdg7 {[%clk 0:00:02.7]} 34. Re2 {[%clk 0:01:12.6]}
34... h4 {[%clk 0:00:02.5]} 35. Rh6 {[%clk 0:01:10.8]} 35... Rd7 {[%clk
0:00:01.7]} 36. Rxh4 {[%clk 0:01:10.8]} 36... b5 {[%clk 0:00:02.6]} 37. Rg4
{[%clk 0:01:10.4]} 37... Rf8 {[%clk 0:00:01.4]} 38. Bg3 {[%clk 0:01:08.8]} 38...
a5 {[%clk 0:00:01.7]} 39. Re5 {[%clk 0:01:08.7]} 39... b4 {[%clk 0:00:01.5]} 40.
cxb4 {[%clk 0:01:07.2]} 40... axb4 {[%clk 0:00:02.4]} 41. Rb5 {[%clk 0:01:07]}
41... Ra7 {[%clk 0:00:02.4]} 42. Rxb4 {[%clk 0:01:07]} 42... Rxa2 {[%clk
0:00:02.5]} 43. Rb8+ {[%clk 0:01:07.2]} 1-0

[Event "*** SCC Grand Prix: Titled Tuesday Blitz"]
[Site "Chess.com"]
[Date "2020.08.25"]
[Round "4"]
[White "TigrVShlyape"]
[Black "sergivila"]
[Result "1-0"]
[WhiteElo "2841"]
[BlackElo "2438"]
[TimeControl "180+1"]
[EndTime "10:40:18 PDT"]
[Termination "TigrVShlyape won by resignation"]

1. d4 {[%clk 0:03:00.9]} 1... d5 {[%clk 0:02:58.2]} 2. Nf3 {[%clk 0:02:53]} 2...
Nf6 {[%clk 0:02:57.7]} 3. Bf4 {[%clk 0:02:49.8]} 3... e6 {[%clk 0:02:57.3]} 4.
e3 {[%clk 0:02:50.3]} 4... Bd6 {[%clk 0:02:57.2]} 5. Ne5 {[%clk 0:02:50.3]} 5...
O-O {[%clk 0:02:53.8]} 6. Nd2 {[%clk 0:02:50.5]} 6... c5 {[%clk 0:02:52.1]} 7.
c3 {[%clk 0:02:49.2]} 7... Qc7 {[%clk 0:02:48.8]} 8. Bd3 {[%clk 0:02:47.5]} 8...
b6 {[%clk 0:02:47.1]} 9. Qe2 {[%clk 0:02:34.4]} 9... Nc6 {[%clk 0:02:38.5]} 10.
Ndf3 {[%clk 0:02:33.6]} 10... Bb7 {[%clk 0:02:32.1]} 11. g4 {[%clk 0:02:26.1]}
11... Ne4 {[%clk 0:02:18.7]} 12. g5 {[%clk 0:02:23.4]} 12... f6 {[%clk
0:01:58.8]} 13. gxf6 {[%clk 0:02:18.8]} 13... gxf6 {[%clk 0:01:56.8]} 14. Rg1+
{[%clk 0:02:12.8]} 14... Kh8 {[%clk 0:01:55.6]} 15. Nxc6 {[%clk 0:02:12.8]}
15... Bxf4 {[%clk 0:01:50.3]} 16. exf4 {[%clk 0:02:12.7]} 16... Bxc6 {[%clk
0:01:45.9]} 17. Qe3 {[%clk 0:02:11.7]} 17... Rg8 {[%clk 0:01:38.2]} 18. O-O-O
{[%clk 0:02:11]} 18... a5 {[%clk 0:01:30.2]} 19. dxc5 {[%clk 0:01:59.6]} 19...
Nxc5 {[%clk 0:01:23.7]} 20. Bc2 {[%clk 0:01:50.7]} 20... Rxg1 {[%clk 0:01:06.1]}
21. Rxg1 {[%clk 0:01:48.9]} 21... Rg8 {[%clk 0:01:05.2]} 22. Rg3 {[%clk
0:01:46.8]} 22... Be8 {[%clk 0:00:49.2]} 23. Nd4 {[%clk 0:01:33.8]} 23... Bf7
{[%clk 0:00:43]} 24. Rxg8+ {[%clk 0:01:20.7]} 24... Bxg8 {[%clk 0:00:38.7]} 25.
a3 {[%clk 0:01:07]} 25... a4 {[%clk 0:00:33.2]} 26. Nf3 {[%clk 0:00:59.9]} 26...
Bf7 {[%clk 0:00:30.6]} 27. Qd4 {[%clk 0:00:55.1]} 27... Kg7 {[%clk 0:00:23.9]}
28. Kd2 {[%clk 0:00:47.8]} 28... b5 {[%clk 0:00:21.7]} 29. Qe3 {[%clk
0:00:42.6]} 29... Nb7 {[%clk 0:00:20]} 30. Nd4 {[%clk 0:00:41.4]} 30... Qd7
{[%clk 0:00:18.6]} 31. Qg3+ {[%clk 0:00:41.5]} 31... Kf8 {[%clk 0:00:18.1]} 32.
Qh4 {[%clk 0:00:41.6]} 32... Ke7 {[%clk 0:00:17.8]} 33. Qxh7 {[%clk 0:00:40]}
33... Nd6 {[%clk 0:00:18]} 34. Bg6 {[%clk 0:00:39.4]} 34... Nc4+ {[%clk
0:00:17.3]} 35. Kc2 {[%clk 0:00:38.1]} 35... Ke8 {[%clk 0:00:16.9]} 36. Qg8+
{[%clk 0:00:37.4]} 1-0

[Event "*** SCC Grand Prix: Titled Tuesday Blitz"]
[Site "Chess.com"]
[Date "2020.08.25"]
[Round "4"]
[White "kleopl"]
[Black "checkitas"]
[Result "0-1"]
[WhiteElo "2445"]
[BlackElo "2269"]
[TimeControl "180+1"]
[EndTime "10:40:19 PDT"]
[Termination "checkitas won by resignation"]

1. c4 {[%clk 0:03:00.9]} 1... Nf6 {[%clk 0:02:49.2]} 2. Nc3 {[%clk 0:03:00.1]}
2... e6 {[%clk 0:02:48.8]} 3. d4 {[%clk 0:02:59.3]} 3... d5 {[%clk 0:02:46.1]}
4. Bg5 {[%clk 0:02:57.3]} 4... Be7 {[%clk 0:02:39.9]} 5. cxd5 {[%clk 0:02:56.4]}
5... Nxd5 {[%clk 0:02:36.2]} 6. Bxe7 {[%clk 0:02:53.9]} 6... Nxe7 {[%clk
0:02:28.3]} 7. e4 {[%clk 0:02:53.2]} 7... b6 {[%clk 0:02:26.8]} 8. Nf3 {[%clk
0:02:52.8]} 8... Bb7 {[%clk 0:02:26]} 9. Bb5+ {[%clk 0:02:48.9]} 9... c6 {[%clk
0:02:25.3]} 10. Bd3 {[%clk 0:02:48.6]} 10... Nd7 {[%clk 0:02:23.2]} 11. O-O
{[%clk 0:02:48.2]} 11... O-O {[%clk 0:02:21.5]} 12. e5 {[%clk 0:02:43.8]} 12...
h6 {[%clk 0:02:01]} 13. Ne4 {[%clk 0:02:41.4]} 13... c5 {[%clk 0:01:52.7]} 14.
dxc5 {[%clk 0:02:36.9]} 14... Nxc5 {[%clk 0:01:46.7]} 15. Nxc5 {[%clk
0:02:35.7]} 15... bxc5 {[%clk 0:01:47.6]} 16. Rc1 {[%clk 0:02:35.7]} 16... Qb6
{[%clk 0:01:46.1]} 17. b3 {[%clk 0:02:31.1]} 17... Rfd8 {[%clk 0:01:43.7]} 18.
Qe2 {[%clk 0:02:27.3]} 18... Nd5 {[%clk 0:01:43]} 19. Bb1 {[%clk 0:02:12.7]}
19... Nf4 {[%clk 0:01:37.1]} 20. Qc2 {[%clk 0:02:06.5]} 20... g6 {[%clk
0:01:36.6]} 21. Nh4 {[%clk 0:01:28.3]} 21... Ba6 {[%clk 0:01:28.5]} 22. g3
{[%clk 0:01:22.4]} 22... Ne2+ {[%clk 0:01:14.8]} 23. Kg2 {[%clk 0:01:18.2]}
23... Bd3 {[%clk 0:01:11.3]} 24. Qd2 {[%clk 0:00:41.4]} 24... Be4+ {[%clk
0:01:07]} 25. Bxe4 {[%clk 0:00:36.8]} 25... Rxd2 {[%clk 0:01:05.9]} 26. Bxa8
{[%clk 0:00:35.8]} 26... Nxc1 {[%clk 0:01:04.6]} 27. Rxc1 {[%clk 0:00:36.7]}
27... c4 {[%clk 0:00:58.8]} 28. Rf1 {[%clk 0:00:29.5]} 28... c3 {[%clk
0:00:51.5]} 29. Nf3 {[%clk 0:00:28.8]} 29... Rxa2 {[%clk 0:00:49.5]} 30. Be4
{[%clk 0:00:23.7]} 30... Qxb3 {[%clk 0:00:43.3]} 31. h4 {[%clk 0:00:21.4]} 31...
Qc4 {[%clk 0:00:39.6]} 32. Bb1 {[%clk 0:00:19.4]} 32... Re2 {[%clk 0:00:35]} 33.
h5 {[%clk 0:00:15.1]} 33... c2 {[%clk 0:00:34.7]} 34. Rc1 {[%clk 0:00:15.1]}
34... Qc5 {[%clk 0:00:29.5]} 0-1

[Event "*** SCC Grand Prix: Titled Tuesday Blitz"]
[Site "Chess.com"]
[Date "2020.08.25"]
[Round "4"]
[White "Ariadna_Atreides"]
[Black "krasavetc"]
[Result "0-1"]
[WhiteElo "2049"]
[BlackElo "2305"]
[TimeControl "180+1"]
[EndTime "10:40:24 PDT"]
[Termination "krasavetc won by resignation"]

1. d4 {[%clk 0:03:00.9]} 1... Nf6 {[%clk 0:02:56.6]} 2. Nf3 {[%clk 0:03:00.6]}
2... e6 {[%clk 0:02:55]} 3. e3 {[%clk 0:03:00.2]} 3... c5 {[%clk 0:02:55]} 4.
Bd3 {[%clk 0:02:59.4]} 4... cxd4 {[%clk 0:02:54.8]} 5. exd4 {[%clk 0:02:59.2]}
5... Nc6 {[%clk 0:02:55.7]} 6. O-O {[%clk 0:02:58.2]} 6... d5 {[%clk 0:02:56.1]}
7. c3 {[%clk 0:02:53.6]} 7... Bd6 {[%clk 0:02:55.1]} 8. Re1 {[%clk 0:02:52.4]}
8... O-O {[%clk 0:02:51]} 9. Bg5 {[%clk 0:02:45.9]} 9... Be7 {[%clk 0:02:40.2]}
10. Nbd2 {[%clk 0:02:41]} 10... h6 {[%clk 0:02:30.1]} 11. Bh4 {[%clk 0:02:33.9]}
11... Nd7 {[%clk 0:02:29.3]} 12. Bxe7 {[%clk 0:02:31.1]} 12... Nxe7 {[%clk
0:02:25.6]} 13. Ne5 {[%clk 0:02:26]} 13... Nxe5 {[%clk 0:02:24.6]} 14. Rxe5
{[%clk 0:02:23.3]} 14... Nc6 {[%clk 0:02:23.4]} 15. Re3 {[%clk 0:02:18.5]} 15...
e5 {[%clk 0:02:11.4]} 16. dxe5 {[%clk 0:02:13.5]} 16... d4 {[%clk 0:02:09.3]}
17. cxd4 {[%clk 0:02:09.7]} 17... Qxd4 {[%clk 0:02:07.2]} 18. Nf3 {[%clk
0:01:59.8]} 18... Qxb2 {[%clk 0:02:04.5]} 19. Re2 {[%clk 0:01:37.6]} 19... Qa3
{[%clk 0:01:51.3]} 20. h3 {[%clk 0:01:29]} 20... Be6 {[%clk 0:01:44.3]} 21. Rd2
{[%clk 0:01:10.6]} 21... Rad8 {[%clk 0:01:39]} 22. Qe2 {[%clk 0:01:09.8]} 22...
Rd7 {[%clk 0:01:27.1]} 23. Qe4 {[%clk 0:01:04.7]} 23... g6 {[%clk 0:01:04.7]}
24. Nh4 {[%clk 0:01:03.4]} 24... Rd4 {[%clk 0:00:56.8]} 25. Qe3 {[%clk
0:00:52.6]} 25... Rxh4 {[%clk 0:00:50.4]} 26. Rb1 {[%clk 0:00:51.4]} 26... Rd4
{[%clk 0:00:44]} 27. Rxb7 {[%clk 0:00:43.7]} 27... Rfd8 {[%clk 0:00:42.3]} 28.
Rc7 {[%clk 0:00:21.7]} 28... Rxd3 {[%clk 0:00:21.9]} 29. Rxd3 {[%clk 0:00:17.1]}
29... Qxd3 {[%clk 0:00:17.2]} 30. Qxd3 {[%clk 0:00:12.2]} 30... Rxd3 {[%clk
0:00:17.4]} 31. Rxc6 {[%clk 0:00:13.1]} 31... Ra3 {[%clk 0:00:18.3]} 32. Rc8+
{[%clk 0:00:12.3]} 32... Bxc8 {[%clk 0:00:17.8]} 0-1

[Event "*** SCC Grand Prix: Titled Tuesday Blitz"]
[Site "Chess.com"]
[Date "2020.08.25"]
[Round "4"]
[White "BJthechessgod"]
[Black "gagtemp"]
[Result "1-0"]
[WhiteElo "2214"]
[BlackElo "1950"]
[TimeControl "180+1"]
[EndTime "10:40:26 PDT"]
[Termination "BJthechessgod won by checkmate"]

1. e4 {[%clk 0:03:00.9]} 1... d5 {[%clk 0:02:59.2]} 2. exd5 {[%clk 0:03:00.2]}
2... Qxd5 {[%clk 0:02:59]} 3. Nc3 {[%clk 0:03:00]} 3... Qd6 {[%clk 0:02:58.7]}
4. d4 {[%clk 0:03:00]} 4... Nf6 {[%clk 0:02:54.4]} 5. Nf3 {[%clk 0:03:00]} 5...
a6 {[%clk 0:02:53.8]} 6. Be2 {[%clk 0:02:58.4]} 6... Nbd7 {[%clk 0:02:47.5]} 7.
O-O {[%clk 0:02:57.5]} 7... e6 {[%clk 0:02:45.1]} 8. Re1 {[%clk 0:02:51.1]} 8...
c5 {[%clk 0:02:36.6]} 9. d5 {[%clk 0:02:43.6]} 9... Be7 {[%clk 0:02:25.5]} 10.
dxe6 {[%clk 0:02:41.1]} 10... fxe6 {[%clk 0:02:17.5]} 11. Qxd6 {[%clk
0:02:33.5]} 11... Bxd6 {[%clk 0:02:16.7]} 12. Bc4 {[%clk 0:02:31.2]} 12... O-O
{[%clk 0:01:58.1]} 13. Bxe6+ {[%clk 0:02:26.1]} 13... Kh8 {[%clk 0:01:57.6]} 14.
Bg5 {[%clk 0:02:19.2]} 14... b5 {[%clk 0:01:51.9]} 15. Rad1 {[%clk 0:02:12.9]}
15... Bc7 {[%clk 0:01:46.3]} 16. Bxd7 {[%clk 0:01:41.6]} 16... Nxd7 {[%clk
0:01:45]} 17. Re7 {[%clk 0:01:25.3]} 17... Bd8 {[%clk 0:01:19.4]} 18. Rdxd7
{[%clk 0:01:17]} 18... Bxd7 {[%clk 0:01:18.5]} 19. Rxd7 {[%clk 0:01:04.9]} 19...
Bxg5 {[%clk 0:01:17.2]} 20. Nxg5 {[%clk 0:00:57.5]} 20... b4 {[%clk 0:01:11.4]}
21. Nce4 {[%clk 0:00:54.5]} 21... h6 {[%clk 0:00:52.2]} 22. Ne6 {[%clk 0:00:44]}
22... Rfe8 {[%clk 0:00:46.2]} 23. N4xc5 {[%clk 0:00:32.5]} 23... Rac8 {[%clk
0:00:40.1]} 24. Kf1 {[%clk 0:00:27.6]} 24... Rc6 {[%clk 0:00:35]} 25. Nxg7
{[%clk 0:00:13]} 25... Rec8 {[%clk 0:00:23.3]} 26. Nce6 {[%clk 0:00:06.9]} 26...
Rxc2 {[%clk 0:00:21.8]} 27. Nf5 {[%clk 0:00:05.7]} 27... Rc1+ {[%clk 0:00:20.5]}
28. Ke2 {[%clk 0:00:05.9]} 28... R1c2+ {[%clk 0:00:20]} 29. Kf3 {[%clk
0:00:06.1]} 29... Rf8 {[%clk 0:00:17.4]} 30. Nxf8 {[%clk 0:00:05.8]} 30... Rxb2
{[%clk 0:00:16.5]} 31. Ng6+ {[%clk 0:00:06.7]} 31... Kg8 {[%clk 0:00:15.8]} 32.
Nxh6# {[%clk 0:00:06.8]} 1-0

[Event "*** SCC Grand Prix: Titled Tuesday Blitz"]
[Site "Chess.com"]
[Date "2020.08.25"]
[Round "4"]
[White "chessfrendz"]
[Black "ditkin25"]
[Result "0-1"]
[WhiteElo "2236"]
[BlackElo "2433"]
[TimeControl "180+1"]
[EndTime "10:40:29 PDT"]
[Termination "ditkin25 won by resignation"]

1. d4 {[%clk 0:03:00.9]} 1... Nf6 {[%clk 0:02:58.1]} 2. c4 {[%clk 0:03:00.7]}
2... g6 {[%clk 0:02:58.7]} 3. Nc3 {[%clk 0:03:00.6]} 3... Bg7 {[%clk 0:02:58.8]}
4. e4 {[%clk 0:03:01.1]} 4... d6 {[%clk 0:02:59.5]} 5. Nf3 {[%clk 0:03:01]} 5...
O-O {[%clk 0:03:00.1]} 6. Be2 {[%clk 0:03:01.4]} 6... c5 {[%clk 0:03:00.3]} 7.
d5 {[%clk 0:03:00.7]} 7... e6 {[%clk 0:03:00.4]} 8. O-O {[%clk 0:02:59.7]} 8...
exd5 {[%clk 0:03:00.7]} 9. exd5 {[%clk 0:02:59.4]} 9... Re8 {[%clk 0:02:59.4]}
10. h3 {[%clk 0:02:57.6]} 10... Bf5 {[%clk 0:02:59.6]} 11. Bg5 {[%clk
0:02:55.4]} 11... h6 {[%clk 0:02:56.7]} 12. Be3 {[%clk 0:02:54.5]} 12... Ne4
{[%clk 0:02:50.5]} 13. Nxe4 {[%clk 0:02:50.4]} 13... Bxe4 {[%clk 0:02:51.4]} 14.
Qd2 {[%clk 0:02:50.7]} 14... Kh7 {[%clk 0:02:38.3]} 15. Nh2 {[%clk 0:02:34.5]}
15... Nd7 {[%clk 0:02:14.3]} 16. Rae1 {[%clk 0:01:46.5]} 16... b5 {[%clk
0:01:53.6]} 17. b3 {[%clk 0:01:45.4]} 17... bxc4 {[%clk 0:01:51]} 18. Bxc4
{[%clk 0:01:41.8]} 18... Ne5 {[%clk 0:01:33.7]} 19. Bb5 {[%clk 0:01:29.9]} 19...
Re7 {[%clk 0:01:25.5]} 20. f3 {[%clk 0:01:28.7]} 20... Bf5 {[%clk 0:01:24.2]}
21. g4 {[%clk 0:01:23.5]} 21... Bd7 {[%clk 0:01:15.4]} 22. Bxd7 {[%clk
0:01:19.6]} 22... Nxd7 {[%clk 0:01:05.7]} 23. Bf2 {[%clk 0:01:13]} 23... Rxe1
{[%clk 0:00:56.8]} 24. Rxe1 {[%clk 0:01:12]} 24... Qf8 {[%clk 0:00:39.3]} 25.
Kg2 {[%clk 0:00:57.5]} 25... Re8 {[%clk 0:00:39.3]} 26. Rxe8 {[%clk 0:00:54.3]}
26... Qxe8 {[%clk 0:00:40.2]} 27. Nf1 {[%clk 0:00:49]} 27... Qe5 {[%clk
0:00:34.6]} 28. Ng3 {[%clk 0:00:47.5]} 28... Nf6 {[%clk 0:00:31.9]} 29. Qa5
{[%clk 0:00:37.3]} 29... Nxd5 {[%clk 0:00:28.5]} 30. Qxa7 {[%clk 0:00:33]} 30...
Nf4+ {[%clk 0:00:20.4]} 31. Kh2 {[%clk 0:00:32.4]} 31... Qd5 {[%clk 0:00:20.8]}
32. Qa4 {[%clk 0:00:24]} 32... Qxf3 {[%clk 0:00:19.6]} 33. Qe4 {[%clk
0:00:18.3]} 33... Qxf2+ {[%clk 0:00:19.8]} 0-1

[Event "*** SCC Grand Prix: Titled Tuesday Blitz"]
[Site "Chess.com"]
[Date "2020.08.25"]
[Round "4"]
[White "Slovak_fighter2000"]
[Black "MVM2008"]
[Result "1-0"]
[WhiteElo "2421"]
[BlackElo "2219"]
[TimeControl "180+1"]
[EndTime "10:40:31 PDT"]
[Termination "Slovak_fighter2000 won on time"]

1. Nf3 {[%clk 0:02:54.9]} 1... Nf6 {[%clk 0:02:58.6]} 2. b3 {[%clk 0:02:55.8]}
2... g6 {[%clk 0:02:56.2]} 3. Bb2 {[%clk 0:02:56.7]} 3... Bg7 {[%clk 0:02:56.6]}
4. c4 {[%clk 0:02:55.4]} 4... c5 {[%clk 0:02:54.2]} 5. g3 {[%clk 0:02:52.2]}
5... b6 {[%clk 0:02:54.5]} 6. Bg2 {[%clk 0:02:52.5]} 6... Bb7 {[%clk 0:02:54.5]}
7. O-O {[%clk 0:02:52.7]} 7... O-O {[%clk 0:02:53.9]} 8. Nc3 {[%clk 0:02:50.3]}
8... Nc6 {[%clk 0:02:48.1]} 9. e3 {[%clk 0:02:47.5]} 9... d5 {[%clk 0:02:42.5]}
10. cxd5 {[%clk 0:02:45.3]} 10... Nxd5 {[%clk 0:02:41.7]} 11. Qe2 {[%clk
0:02:43.2]} 11... e5 {[%clk 0:02:35.3]} 12. Rfd1 {[%clk 0:02:38]} 12... Ndb4
{[%clk 0:02:17.5]} 13. Ne1 {[%clk 0:02:32.7]} 13... Ba6 {[%clk 0:02:00.1]} 14.
d3 {[%clk 0:02:21.1]} 14... Bb7 {[%clk 0:01:48.4]} 15. a3 {[%clk 0:02:20.3]}
15... Na6 {[%clk 0:01:48.2]} 16. Nc2 {[%clk 0:02:13.8]} 16... Re8 {[%clk
0:01:42.4]} 17. b4 {[%clk 0:02:01.7]} 17... Nc7 {[%clk 0:01:08.4]} 18. bxc5
{[%clk 0:01:41.5]} 18... bxc5 {[%clk 0:01:06.1]} 19. Ne4 {[%clk 0:01:40.9]}
19... Ne6 {[%clk 0:01:03.5]} 20. Nd2 {[%clk 0:01:32.3]} 20... Rb8 {[%clk
0:00:52.1]} 21. Nc4 {[%clk 0:01:31.9]} 21... Na5 {[%clk 0:00:33.1]} 22. Bc3
{[%clk 0:01:27.6]} 22... Nxc4 {[%clk 0:00:28.5]} 23. dxc4 {[%clk 0:01:28.5]}
23... Nd4 {[%clk 0:00:17.6]} 24. Bxd4 {[%clk 0:01:24.3]} 24... exd4 {[%clk
0:00:15.4]} 25. Bxb7 {[%clk 0:01:23.9]} 25... Rxb7 {[%clk 0:00:16.3]} 26. Qf3
{[%clk 0:01:24]} 26... Rd7 {[%clk 0:00:10.9]} 27. exd4 {[%clk 0:01:03.4]} 27...
cxd4 {[%clk 0:00:11.1]} 28. Nb4 {[%clk 0:00:51]} 28... d3 {[%clk 0:00:09.5]} 29.
Rab1 {[%clk 0:00:49.9]} 29... d2 {[%clk 0:00:08.5]} 30. Nd5 {[%clk 0:00:46]}
30... Qa5 {[%clk 0:00:04.9]} 31. Kg2 {[%clk 0:00:43]} 31... h6 {[%clk 0:00:03]}
32. Qd3 {[%clk 0:00:37.5]} 32... Rdd8 {[%clk 0:00:01.6]} 33. Qxd2 {[%clk
0:00:33.7]} 33... Kh7 {[%clk 0:00:01.8]} 34. Qxa5 {[%clk 0:00:33.1]} 1-0